Cogmind - Beta 15 @@@ ROGUE MODE // 2025.06.14 @ 16:53:38 Player: Demo Result: Destroyed by G-67 Veteran with Field Laser Performance ------------- Evolutions (6) 3000 Regions Visited (10) 2000 Robots Destroyed (220) 1100 Value Destroyed (8547) 8547 Prototype IDs (29) 580 Alien Tech Used (0) 0 Bonus (2953) 2953 TOTAL SCORE: 18180 Bonus ------- High Alert Combat Kills 3038 Follower Combat Kills 109 Friendly Fire -194 Cogmind --------- Core Integrity 0/1150 Matter 294/300 Energy 100/100 System Corruption 3% Temperature Cool (1) Movement Flying (35) Location -4/Factory Parts ------- > --- POWER (2) -------- (None) > --- PROPULSION (6) --- VTOL Module > --- UTILITY (7) ------ Advanced Signal Interpreter Advanced Terrain Scan Processor Advanced Targeting Computer > --- WEAPON (4) ------- (None) > --- INVENTORY (5) ---- Centrium Wheel Advanced Energy Well (500) Improved Weapon Cycler Improved Transmission Jammer Long-range Tractor Beam Peak State ------------ > --- POWER ------------ Meta Core Neutrino-Quantum Core > --- PROPULSION ------- Hovering Gravjet-Carbon Exoskeleton > --- UTILITY ---------- Armored Scrap Engine Experimental Heat Sink Large Storage Unit Advanced Sensor Array Improved Signal Interpreter Advanced Terrain Scan Processor Improved Transmission Jammer > --- WEAPON ----------- Gatling Ballistic Hardcell Construct/C Shotgun Thermic Force Construct/C Energy Ion Construct/C Shotgun EM Penetrator Construct/C > --- INVENTORY -------- Advanced Heat Sink Advanced Cooling System Medium Storage Unit Huge Storage Unit Energy Well Matter Compressor Advanced Signal Interpreter Improved Terrain Scanner Advanced Targeting Computer Weapon Mount Improved Transmission Jammer Advanced ECM Suite EM Shield Advanced Plasma Cannon Improved Proton Missile Launcher [Rating: 123] Favorites ----------- Power Meta Core Engine Light Deuterium Engine Power Core Meta Core Propulsion Constructs Treads Light Treads Wheel Wheel Hover Unit Constructs Flight Unit Impulse Thruster Utility Armored Scrap Engine Device Armored Scrap Engine Storage Large Storage Unit Processor Improved Signal Interpreter Hackware Hacking Suite Protection Makeshift Light Armor Plating Weapon Constructs Energy Gun EM Shotgun Energy Cannon Constructs Ballistic Gun Barrage Gun Ballistic Cannon Constructs Launcher Smartbomb Launcher Special Weapon Multitool Impact Weapon Shock Maul Piercing Weapon Kinetic Spear Special Melee Weapon Improved Datajack Build | -11 -10 -10 -8 -6 -6 -6 -5 -5 -5 -4 ------- Run | Yrd Mat Sub Rec Fac Was Fac Fac Was Fac Fac Slots Evolved 12 | . . . . 8 . . 2 . . 2 Power 1 | . . . . . . . 1 . . . Propulsion 4 | . . . . 2 . . . . . 2 Utility 5 | . . . . 4 . . 1 . . . Weapon 2 | . . . . 2 . . . . . . Parts Attached 138 | 10 8 26 5 26 . 17 4 1 30 11 Power 8 | 1 . 4 1 . . 1 . . 1 . Engine 6 | 1 . 4 1 . . . . . . . Core 2 | . . . . . . 1 . . 1 . Reactor . | . . . . . . . . . . . Propulsion 25 | 4 3 10 1 1 . 1 . . 1 4 Treads 6 | . 1 4 . . . 1 . . . . Leg . | . . . . . . . . . . . Wheel 14 | 4 2 6 1 . . . . . 1 . Hover 1 | . . . . . . . . . . 1 Flight 4 | . . . . 1 . . . . . 3 Utility 72 | 2 4 2 1 20 . 12 4 1 20 6 Device 38 | 1 1 1 1 12 . 6 2 1 11 2 Storage 11 | 1 3 . . . . 3 1 . 3 . Processor 13 | . . . . 3 . 2 1 . 4 3 Hackware 2 | . . . . 1 . . . . 1 . Protection 8 | . . 1 . 4 . 1 . . 1 1 Artifact . | . . . . . . . . . . . Weapon 33 | 3 1 10 2 5 . 3 . . 8 1 Energy Gun 7 | 2 . 1 1 1 . 1 . . 1 . Energy Cannon 5 | . 1 3 . 1 . . . . . . Ballistic Gun 8 | 1 . 5 1 . . 1 . . . . Ballistic Cannon 2 | . . . . 2 . . . . . . Launcher 4 | . . . . 1 . . . . 3 . Special Weapon 2 | . . 1 . . . . . . . 1 Impact Weapon 1 | . . . . . . . . . 1 . Slashing Weapon . | . . . . . . . . . . . Piercing Weapon 2 | . . . . . . . . . 2 . Special Melee Weapon 2 | . . . . . . 1 . . 1 . Unidentified Prototypes 11 | . . . 1 3 . 2 1 . 4 . Parts Lost 58 | . . 2 2 15 1 2 . . 18 18 Power 5 | . . 1 . 2 . . . . 2 . Propulsion 12 | . . 1 . 1 . . . . 3 7 Utility 19 | . . . . 7 1 1 . . 5 5 Weapon 22 | . . . 2 5 . 1 . . 8 6 Highest Loss Streak 9 | . . 1 1 6 1 1 . . 9 6 To Critical Strikes 4 | . . . . 1 . . . . . 3 Average Backups 12 | 3 16 19 9 4 5 8 12 15 13 10 Power . | . . . . . . . . . . . Propulsion 1 | 2 6 4 1 . . . . . . . Utility 7 | . 6 7 4 2 3 4 10 14 11 9 Weapon 2 | . 3 4 1 1 1 3 2 1 1 . Tool/Special . | . . . . . . . . . . . Unused Backups 69 | 3 8 10 8 2 . 14 2 . 15 7 Power 3 | . . 1 . . . 2 . . . . Propulsion 13 | 3 2 . 1 . . 2 . . 4 1 Utility 36 | . 6 5 6 2 . 2 . . 10 5 Weapon 17 | . . 4 1 . . 8 2 . 1 1 Tool/Special . | . . . . . . . . . . . Average Slot Usage (%) 75 | . 100 99 82 58 31 59 69 70 68 46 Engine 7 | . 14 13 13 4 . . . . . . Core 3 | . . . . . . 4 9 10 9 2 Treads 5 | . . 13 8 . . 3 . . 2 . Leg 1 | . . . 2 3 6 1 . . . 1 Wheel 6 | . 27 14 9 . . . 5 5 . . Device 14 | . 14 12 7 16 11 12 19 20 19 12 Storage 6 | . 14 14 5 . . 7 6 5 5 3 Processor 4 | . . . . 1 13 7 8 10 10 11 Protection 2 | . . 1 5 5 . 1 . . . . Energy Gun 5 | . 13 1 13 2 . . . . 3 1 Energy Cannon 4 | . . 12 1 . . 2 . . 4 1 Ballistic Gun 7 | . 14 13 12 2 . 9 10 10 . . Ballistic Cannon 2 | . . . . 7 . 4 10 10 3 . Peak Build Rating 123 | 7 9 19 37 68 41 102 105 105 123 104 Average Rating 57 | 5 8 13 26 58 39 85 101 104 107 76 On Entrance 49 | . 7 9 19 37 41 37 92 105 105 92 Naked Turns . | . . . . . . . . . . . Heaviest Build 82 | 13 48 61 61 33 2 57 63 63 82 74 Greatest Support 118 | 32 20 40 40 40 3 106 68 68 118 116 Greatest Overweight (x) 5 | . 2 5 5 1 . 1 . . 4 2 Average Overweight (x) 1 | . 1 3 1 . . . . . . . Largest Inventory Capacity 20 | 8 20 20 20 5 5 10 15 15 15 15 Average Capacity 13 | 7 17 20 10 5 5 9 13 15 15 12 Most Carried 20 | 8 20 20 20 5 5 10 15 15 15 15 Average Carried 12 | 3 16 19 9 4 5 8 12 15 14 11 Final Capacity 20 | 8 20 20 5 5 5 10 15 15 15 5 Final Carried 20 | 7 20 20 5 5 5 10 15 15 13 5 Scrap Engine Consumption 294 | . . . 44 52 5 51 7 4 104 27 Constructs Created 15 | . . . 3 2 1 4 1 . 4 . Constructs Modified 109 | . . . 13 16 . 17 4 . 47 12 Class Distribution -------------------- 31% | Mutant 27% | Construct 13% | Commander-Construct 10% | Scavenger-Mutant 6% | Commander-Mutant 5% | Skirmisher Dominant Class ---------------- Mutant | -10/Materials Scavenger-Mutant | -10/Subcaves Commander-Construct | -8/Recycling Construct | -6/Factory Mutant | -6/Waste Construct | -6/Factory Construct | -5/Factory Construct | -5/Waste Construct | -5/Factory Mutant | -4/Factory Resources | -11 -10 -10 -8 -6 -6 -6 -5 -5 -5 -4 ----------- Run | Yrd Mat Sub Rec Fac Was Fac Fac Was Fac Fac Matter Collected 8204 | 334 645 1631 318 291 . 657 322 163 3038 805 Remotely . | . . . . . . . . . . . Salvage Created 10207 | 220 490 357 1018 1128 . 824 447 933 3880 910 Parts 434 | 20 38 22 51 76 . 36 9 5 156 21 Haulers Intercepted 7 | . 2 . . . . . . . 5 . Recyclers Shooed 10 | . 2 . 1 5 . . . . 2 . Parts Field Recycled . | . . . . . . . . . . . Retrieved Matter . | . . . . . . . . . . . Parts Self-Destructed 21 | . . 21 . . . . . . . . Prevented . | . . . . . . . . . . . Kills | -11 -10 -10 -8 -6 -6 -6 -5 -5 -5 -4 ------- Run | Yrd Mat Sub Rec Fac Was Fac Fac Was Fac Fac Combat Hostiles Destroyed 128 | . 2 6 6 17 . 14 3 4 60 16 Melee 4 | . . . . . . . . . 4 . Guns 26 | . 2 3 5 2 . 4 1 3 2 4 Cannons 43 | . . 3 1 12 . 7 1 1 17 1 AOE 37 | . . . . 3 . 1 1 . 28 4 Classes Destroyed 23 | 3 4 4 2 5 . 1 . 1 2 1 Worker 27 | 2 1 . . 2 . 3 2 . 16 1 Builder 15 | . 5 . 1 3 . 1 1 . 3 1 Tunneler 11 | 4 2 . . 1 . 1 . . 3 . Hauler 7 | . 2 . . . . . . . 5 . Recycler 17 | 1 2 . 8 1 . 1 2 . 2 . Mechanic 3 | . . . . 1 . . . . 2 . Operator 2 | . 1 . . . . . . . 1 . Turret 2 | . . 2 . . . . . . . . Watcher 6 | . . . . 1 . 1 . . 4 . Swarmer 12 | . 2 1 . 4 . 4 . . 1 . Grunt 33 | . . . . 5 . 5 . . 21 2 Brawler 5 | . . . . . . . . . 5 . Duelist 8 | . . . . . . . . . 6 2 Sentry 17 | . . . 4 2 . 1 1 . 6 3 Specialist 5 | . . . . 3 . . . . 2 . Hunter 11 | . . . . . . 2 . . 4 5 Programmer 26 | . . . . 4 . 2 2 . 15 3 Behemoth 1 | . . . . . . . . . . 1 Compactor 4 | . . . . . . . . 4 . . Artisan 1 | . . 1 . . . . . . . . Cobbler 1 | . . 1 . . . . . . . . Subdweller 5 | . . 5 . . . . . . . . Scrapper 3 | . . . 3 . . . . . . . Best Kill Streak 16 | 5 7 2 5 4 . 5 4 2 16 5 Combat Bots Only 11 | . 2 2 2 3 . 4 2 2 11 5 Max Kills in Single Turn 5 | 1 1 1 1 3 . 2 3 1 5 2 Gunslinging . | . . . . . . . . . . . Exploded 5 | . . . . 2 . 1 1 . 5 2 Melee 1 | . . . . . . . . . 1 . Uniques/NPCs Destroyed . | . . . . . . . . . . . Combat | -11 -10 -10 -8 -6 -6 -6 -5 -5 -5 -4 -------- Run | Yrd Mat Sub Rec Fac Was Fac Fac Was Fac Fac Hostile Shots Fired 1253 | . 37 64 27 284 1 124 18 . 311 387 Missed 400 | . 10 27 3 89 . 37 5 . 78 151 Hits 853 | . 27 37 24 195 1 87 13 . 233 236 Melee 12 | . . . . . 1 . . . 11 . Projectile 841 | . 27 37 24 195 . 87 13 . 222 236 AOE 3 | . . 2 . . . . . . . 1 Critical Strikes 33 | . . . 1 2 1 4 . . 16 9 Part Disruptions 1 | . . . . . . . . . . 1 Actively Blocked 1 | . . . . . . . . . . 1 Damage Taken 15440 | . 215 577 394 3062 45 1239 264 . 5272 4372 Core 2715 | . 50 96 27 624 . 161 26 . 568 1163 Absorbed by Shields 126 | . . . . 126 . . . . . . Ignored by Resistances 405 | . . . . 62 . 4 28 . 311 . Regen/Repaired (Parts) 3161 | . . . 13 396 259 448 . . 1036 1009 Core Remaining (%) 44 | 100 . . 30 . . 7 . . 40 . Volleys Fired 763 | 21 69 126 63 90 . 73 22 18 203 78 Largest 4 | 2 2 2 2 3 . 4 4 4 4 1 Hottest 516 | 70 70 110 125 187 . 217 346 346 361 516 Shots Fired 1245 | 42 114 202 91 160 . 147 47 71 293 78 Gun 668 | 42 113 122 82 38 . 88 29 36 81 37 Cannon 496 | . 1 76 9 113 . 59 18 35 164 21 Launcher 77 | . . . . 9 . . . . 48 20 Special 4 | . . 4 . . . . . . . . Kinetic 594 | 21 45 101 60 130 . 93 35 53 56 . Thermal 411 | 21 27 96 9 8 . 54 12 18 126 40 Explosive 64 | . . . . 9 . . . . 35 20 Electromagnetic 176 | . 42 5 22 13 . . . . 76 18 Robot Hit Streak 28 | 10 11 14 17 12 . 15 15 11 28 27 Robot Miss Streak 8 | 4 5 3 4 6 . 3 5 7 8 5 Penetration Max 2 | . . . . . . 1 1 1 2 . Secondary Targets . | . . . . . . . . . . . Shots Hit Robots 714 | 23 60 57 58 106 . 79 22 58 195 56 Core Hits 466 | 8 18 17 31 52 . 49 15 31 197 48 Critical Kills 9 | . . . 2 1 . 1 . . 5 . Critical Parts Destroyed 9 | . . . . 1 . 1 . . 7 . Critical Strikes 27 | 1 3 . 2 2 . 2 . 1 16 . Burn 3 | 1 2 . . . . . . . . . Meltdown 2 | . . . . . . 1 . . 1 . Destroy 17 | . . . 2 2 . 1 . 1 11 . Blast 1 | . . . . . . . . . 1 . Corrupt 1 | . 1 . . . . . . . . . Impale 3 | . . . . . . . . . 3 . Melee Attacks 60 | . . . . . . 4 . . 45 11 Impact 14 | . . . . . . . . . 3 11 Slashing . | . . . . . . . . . . . Piercing 42 | . . . . . . . . . 42 . Sneak Attacks 8 | . . . . . . 4 . . 3 1 Combat Hostiles . | . . . . . . . . . . . Follow-up Attacks 5 | . . . . . . . . . 5 . Damage Inflicted 30829 | 286 841 1000 1106 3930 . 1965 837 2060 15047 3757 Guns 6738 | 286 790 469 808 464 . 781 234 678 1312 916 Cannons 11102 | . . 508 256 2907 . 1003 346 1382 4176 524 Explosions 11983 | . 51 . 42 559 . 181 257 . 8683 2210 Melee 928 | . . . . . . . . . 834 94 Ramming 55 | . . . . . . . . . 42 13 Kinetic 8990 | 110 296 320 526 3079 . 939 435 1652 1633 . Thermal 8486 | 176 242 636 298 94 . 845 356 408 4446 985 Explosive 9069 | . . . . 497 . 181 . . 6181 2210 Electromagnetic 3301 | . 303 44 282 260 . . 46 . 1911 455 Impact 94 | . . . . . . . . . . 94 Slashing . | . . . . . . . . . . . Piercing 834 | . . . . . . . . . 834 . Highest Corruption 19 | . . . . 4 4 5 1 15 19 3 Average Corruption 8 | . . . . 3 4 4 1 7 10 2 Corruption Purged 20 | . . . . . . 5 . . 15 . Corruption Blocked 3 | . . . . . . . . . . 3 Effects 223 | . . . . 16 3 24 . 11 163 6 Message Errors 59 | . . . . 5 . 10 . 3 40 1 Matter Fused 55 | . . . . 3 . 4 . 1 44 3 Heat Flow Errors 27 | . . . . 1 1 4 . 1 20 . Energy Discharges 25 | . . . . 2 . 1 . 2 19 1 Parts Rejected 4 | . . . . . . . . 1 3 . Parts Fused 1 | . . . . . . . . . 1 . Data Loss (minor) 26 | . . . . 1 . 3 . . 22 . Data Loss (major) 12 | . . . . 1 1 1 . . 9 . Misfires 2 | . . . . 2 . . . . . . Alerts 4 | . . . . . 1 . . 1 1 1 Misdirections 1 | . . . . . . . . 1 . . Weapon Failures 7 | . . . . 1 . 1 . 1 4 . Overload Shots 13 | . . . . 2 . . . . . 11 Effects 1 | . . . . 1 . . . . . . Energy Bleed 1 | . . . . 1 . . . . . . Overflow Damage 1098 | . . 21 . 179 . 40 72 . 708 78 Projectiles 331 | . . 21 . 163 . . . . 147 . Explosions 689 | . . . . 16 . 40 72 . 547 14 Melee 78 | . . . . . . . . . 14 64 Knockbacks 51 | . . . . 33 . 5 2 . 11 . Impact . | . . . . . . . . . . . Kinetic 48 | . . . . 31 . 5 2 . 10 . Secondary 3 | . . . . 2 . . . . 1 . Self-Inflicted Damage 607 | . . . 8 41 . . . . 536 22 Shots 19 | . . . 1 1 . . . . 16 1 Rammed 5 | . . . . . . . . . 2 3 Targets Rammed 11 | . . . . . . . . . 8 3 Kicked 6 | . . . . . . . . . 6 . Crushed . | . . . . . . . . . . . Highest Temperature 488 | . 10 99 235 288 259 429 271 225 331 488 Average Temperature 85 | . 7 17 66 77 166 105 102 83 87 132 Received Heat Transfer 2112 | . . 210 159 320 . 168 27 . 1060 168 Effects 7 | . . . 1 1 . . . . 2 3 Energy Bleed 2 | . . . . 1 . . . . . 1 Interference 5 | . . . 1 . . . . . 2 2 Siege Activations 1 | . . . . . . . . . 1 . Total Turns 4 | . . . . . . . . . 4 . Longest Duration 4 | . . . . . . . . . 4 . Martial Activations . | . . . . . . . . . . . Shielding Activations . | . . . . . . . . . . . Robots Disrupted . | . . . . . . . . . . . Combat Hostiles . | . . . . . . . . . . . Robots Corrupted 15 | . . . . 1 . . . . 9 5 Combat Hostiles 11 | . . . . . . . . . 7 4 Parts Fried 19 | . . . . 6 . . 1 . 7 5 Impact Corruptions 4 | . . . . 1 . . . . . 3 Robots Melted 7 | . . . . . . 2 . . 2 3 Combat Hostiles 7 | . . . . . . 2 . . 2 3 Parts Melted 46 | . 1 . 5 . . 8 6 . 13 13 Heat Transferred 13763 | 592 753 1053 359 155 . 2085 900 2150 3333 2383 Parts Sabotaged . | . . . . . . . . . . . Parts Stolen . | . . . . . . . . . . . Parts Stripped . | . . . . . . . . . . . Power Chain Reactions 7 | . 1 . 1 1 . . 1 . 3 . Alert | -11 -10 -10 -8 -6 -6 -6 -5 -5 -5 -4 ------- Run | Yrd Mat Sub Rec Fac Was Fac Fac Was Fac Fac Maximum Alert Level 5 | . . . . 1 . 2 2 . 5 4 Low Security (%) 53 | 100 100 . 100 78 100 3 84 100 14 . Level 1 7 | . . . . 21 . 43 10 . . . Level 2 17 | . . . . . . 52 5 . 36 . Level 3 . | . . . . . . . . . 2 . Level 4 15 | . . . . . . . . . 28 100 Level 5 4 | . . . . . . . . . 16 . High Security . | . . . . . . . . . . . Max Security . | . . . . . . . . . . . Peak Influence 2479 | 15 40 . 53 372 99 691 493 169 2479 1480 Initial 1209 | . . . 33 150 99 20 218 169 45 1209 Average 446 | 2 3 . 6 122 69 428 173 120 923 1309 Influence Increases 7424 | 35 122 90 210 990 . 1150 455 6 3517 849 Destroy 0b10 Robot/C 2440 | . 40 60 80 400 . 280 60 . 1200 320 Destroy 0b10 Robot/NC 450 | 35 65 . 45 45 . 35 25 . 190 10 Destroy Leader 536 | . 4 . . 92 . 72 20 . 268 80 Allied During Kill 37 | . . . 8 29 . . . . . . Successful Hack 255 | . 10 . 17 59 . 57 44 . 26 42 Disable Machine 1065 | . . . 60 90 . 30 240 . 600 45 Anti-Garrison Action 800 | . . . . . . 600 . . 200 . Destroy Structure 1256 | . 3 . . 65 . 46 66 6 958 112 Advance Influence 150 | . . . . 150 . . . . . . Partial Spotted 60 | . . . . 15 . 30 . . . 15 Lose Combat Pursuer 375 | . . 30 . 45 . . . . 75 225 Influence Decreases 5968 | 35 119 24 279 707 254 732 419 424 1113 1862 Entered New Map 2055 | . . 3 36 . 184 9 229 314 20 1260 Time Decay 3006 | 35 119 21 233 510 60 553 190 110 753 422 Lost Part 520 | . . . 10 130 10 20 . . 170 180 Lost Ally 87 | . . . . 67 . . . . 20 . Purge Threat 300 | . . . . . . 150 . . 150 . Squads Dispatched 57 | . 1 . . 14 . 9 1 . 23 9 Investigation 13 | . . . . 3 . 5 . . 3 2 Extermination 15 | . . . . 4 . 2 1 . 6 2 Reinforcement 16 | . 1 . . 7 . 1 . . 5 2 Assault 12 | . . . . . . . . . 9 3 Garrison 1 | . . . . . . 1 . . . . Intercept . | . . . . . . . . . . . Searches Triggered . | . . . . . . . . . . . Construction Impeded 1 | . . . . 1 . . . . . . Haulers Reinforced 3 | . . . . . . . . . 3 . Active Scanning Responses . | . . . . . . . . . . . Cargo Convoy Interrupts 1 | . . . . . . . . . 1 . Stealth | -11 -10 -10 -8 -6 -6 -6 -5 -5 -5 -4 --------- Run | Yrd Mat Sub Rec Fac Was Fac Fac Was Fac Fac Distress Signals 7 | . 3 . . 1 . . . . 1 2 Communications Jammed 54 | . . . . 6 . . . . 21 27 Distress Signals 54 | . . . . 6 . . . . 21 27 Times Spotted 235 | . 10 15 5 29 6 23 3 6 86 52 Peak Tracking Total 16 | . 4 3 2 3 6 5 2 5 16 11 Tactical Retreats 16 | . . 2 . 2 . . . . 4 8 Traps | -11 -10 -10 -8 -6 -6 -6 -5 -5 -5 -4 ------- Run | Yrd Mat Sub Rec Fac Was Fac Fac Was Fac Fac Traps Triggered 5 | . . . . 2 . . 1 . 1 1 Indirectly . | . . . . . . . . . . . Trap Hack Attempts . | . . . . . . . . . . . Triggered . | . . . . . . . . . . . Disarmed . | . . . . . . . . . . . Reprogrammed . | . . . . . . . . . . . Reused . | . . . . . . . . . . . Traps Extracted . | . . . . . . . . . . . Installed . | . . . . . . . . . . . Triggered . | . . . . . . . . . . . Most Traps Carried 1 | . . 1 1 . . . . . . . Machines | -11 -10 -10 -8 -6 -6 -6 -5 -5 -5 -4 ---------- Run | Yrd Mat Sub Rec Fac Was Fac Fac Was Fac Fac Machines Disabled 74 | . 1 2 4 6 . 2 16 . 40 3 Max in Single Turn 16 | . 1 1 1 2 . 1 16 . 7 1 Garrison Access 4 | . . . . . . 3 . . 1 . Machines Repaired . | . . . . . . . . . . . Machines Dismantled . | . . . . . . . . . . . Machines Sabotaged . | . . . . . . . . . . . Overloaded Fab Kills . | . . . . . . . . . . . Hacking | -11 -10 -10 -8 -6 -6 -6 -5 -5 -5 -4 --------- Run | Yrd Mat Sub Rec Fac Was Fac Fac Was Fac Fac Machines Accessed 50 | . 4 1 7 5 . 11 4 . 11 7 Terminals 26 | . 4 . 4 3 . 4 3 . 6 2 Fabricators 6 | . . . . 1 . 2 . . 1 2 Repair Stations 4 | . . . . 1 . . . . 2 1 Recycling Units 7 | . . . 2 . . 2 1 . 1 1 Scanalyzers . | . . . . . . . . . . . Garrison Access 5 | . . . . . . 3 . . 1 1 Total Hacks 121 | . 9 1 23 12 . 25 11 . 24 16 Successful 57 | . 5 1 10 7 . 14 7 . 10 3 Failed 64 | . 4 . 13 5 . 11 4 . 14 13 Catastrophic 18 | . 1 . 3 3 . 2 2 . 6 1 Database Lockouts . | . . . . . . . . . . . Manual 77 | . 9 . 17 5 . 17 8 . 16 5 Terminals 68 | . 9 . 14 7 . 10 8 . 13 7 Fabricators 14 | . . . . 2 . 5 . . 3 4 Repair Stations 9 | . . . . 3 . . . . 5 1 Recycling Units 18 | . . . 7 . . 5 3 . 2 1 Scanalyzers . | . . . . . . . . . . . Garrison Access 9 | . . . . . . 5 . . 1 3 Terminal Hacks 16 | . 1 1 5 1 . 3 2 . 2 1 Part Schematic 3 | . . . 3 . . . . . . . Robot Schematic 1 | . 1 . . . . . . . . . Level Access Points 1 | . . . . . . 1 . . . . Branch Access Points 1 | . . . . . . . . . 1 . Alert Level 1 | . . . . . . . 1 . . . Unreport Threat 2 | . . . . . . 1 . . 1 . Locate Traps 1 | . . . . . . . 1 . . . Dispatch Records 1 | . . . . . . . . . . 1 Registered Components 1 | . . . . . . 1 . . . . Registered Prototypes 1 | . . . . 1 . . . . . . Proto ID Catalog 1 | . . 1 . . . . . . . . Release Object 2 | . . . 2 . . . . . . . Fabricator Hacks 6 | . . . . 2 . 2 . . 1 1 Load Schematic 3 | . . . . 1 . 1 . . 1 . Build 3 | . . . . 1 . 1 . . . 1 Repair Station Hacks 2 | . . . . . . . . . 2 . Scan Component 1 | . . . . . . . . . 1 . Repair 1 | . . . . . . . . . 1 . Recycling Unit Hacks 3 | . . . . . . 2 . . 1 . Retrieve Components 3 | . . . . . . 2 . . 1 . Scanalyzer . | . . . . . . . . . . . Garrison Access Hacks . | . . . . . . . . . . . Unauthorized Hacks 30 | . 4 . 5 4 . 7 5 . 4 1 Terminals 21 | . 4 . 3 4 . 3 3 . 3 1 Track 1 | . . . . . . 1 . . . . Assimilate 1 | . 1 . . . . . . . . . Botnet 18 | . 3 . 3 3 . 2 3 . 3 1 Operators 1 | . . . . 1 . . . . . . Fabricators . | . . . . . . . . . . . Repair Stations . | . . . . . . . . . . . Recycling Units 5 | . . . 2 . . 1 2 . . . Monitor 1 | . . . . . . . 1 . . . Recyclers 1 | . . . . . . . 1 . . . Mask 3 | . . . 2 . . 1 . . . . Scanalyzers . | . . . . . . . . . . . Garrison Access 4 | . . . . . . 3 . . 1 . Jam 4 | . . . . . . 3 . . 1 . Data Cores Recovered 1 | . . . . . . . . . 1 . Used 1 | . . . . . . . . . 1 . Hacking Detections 45 | . 4 . 6 5 . 9 4 . 10 7 Full Trace Events 12 | . 1 . 3 2 . 2 . . 2 2 Feedback Events . | . . . . . . . . . . . Feedback Blocked . | . . . . . . . . . . . Robot Schematics Acquired 1 | . 1 . . . . . . . . . Robots Built . | . . . . . . . . . . . Authchips . | . . . . . . . . . . . Time . | . . . . . . . . . . . Total Robot Build Rating . | . . . . . . . . . . . Part Schematics Acquired 3 | . . . 3 . . . . . . . Parts Built 6 | . . . . 2 . 2 . . . 2 Authchips . | . . . . . . . . . . . Time 141 | . . . . 36 . 36 . . . 69 Total Part Build Rating 30 | . . . . 6 . 6 . . . 18 Parts Repaired 1 | . . . . . . . . . 1 . Time 56 | . . . . . . . . . 56 . Parts Recycled . | . . . . . . . . . . . Recycled Matter . | . . . . . . . . . . . Retrieved Matter . | . . . . . . . . . . . Retrieved Components 8 | . . . . . . . . . 8 . Parts Scanalyzed . | . . . . . . . . . . . Part Schematics Acquired . | . . . . . . . . . . . Parts Damaged . | . . . . . . . . . . . Bothacking | -11 -10 -10 -8 -6 -6 -6 -5 -5 -5 -4 ------------ Run | Yrd Mat Sub Rec Fac Was Fac Fac Was Fac Fac Used RIF Installer . | . . . . . . . . . . . Robots Hacked 2 | . . . . . . 2 . . . . Non-combat 2 | . . . . . . 2 . . . . Combat . | . . . . . . . . . . . Robot Hacks Applied 2 | . . . . . . 2 . . . . parse_system 1 | . . . . . . 1 . . . . find_station 1 | . . . . . . 1 . . . . Relay Couplers Released . | . . . . . . . . . . . Fabnet Peak Effective % . | . . . . . . . . . . . Robots Rewired 8 | . . . 8 . . . . . . . Allies Hacked 3 | . . . . 3 . . . . . . Hacks Repelled . | . . . . . . . . . . . Allies | -11 -10 -10 -8 -6 -6 -6 -5 -5 -5 -4 -------- Run | Yrd Mat Sub Rec Fac Was Fac Fac Was Fac Fac Total Allies 9 | . 1 . 8 . . . . . . . Largest Group 8 | . 1 1 8 8 . . . . . . Highest-Rated Group 149 | . 10 10 149 149 . . . . . . Highest-Rated Ally 27 | . 10 10 27 27 . . . . . . Total Orders 19 | . . . 2 7 . . . . 10 . STAY 6 | . . . 1 2 . . . . 3 . FOLLOW 2 | . . . 1 . . . . . 1 . GUARD 2 | . . . . 2 . . . . . . AID 1 | . . . . 1 . . . . . . EXPLORE 4 | . . . . 1 . . . . 3 . RETURN 4 | . . . . 1 . . . . 3 . Ally Attacks 34 | . . . 5 29 . . . . . . Total Damage 366 | . . . 77 289 . . . . . . Kills 3 | . . . . 3 . . . . . . Allies Corrupted 2 | . . . . . . . . . 2 . Allies Melted . | . . . . . . . . . . . Intel | -11 -10 -10 -8 -6 -6 -6 -5 -5 -5 -4 ------- Run | Yrd Mat Sub Rec Fac Was Fac Fac Was Fac Fac Active Infowar (turns) 10905 | 93 842 3195 . 1288 . 877 382 13 3799 416 Sensors 7509 | . 248 2454 . . . 877 382 13 3535 . Terrain 1174 | . . . . . . . 274 . 900 . Structural 741 | . . 741 . . . . . . . . Traps 53 | . . . . 53 . . . . . . Seismic 687 | 93 594 . . . . . . . . . Jamming 3183 | . . . . 1288 . . . . 1479 416 Robot Analysis Total . | . . . . . . . . . . . Derelict Logs Recovered 2 | . . 2 . . . . . . . . Drone Launches 15 | . . . . 2 . . . . 13 . Drone Recoveries 13 | . . . . 2 . . . . 11 . Exploration | -11 -10 -10 -8 -6 -6 -6 -5 -5 -5 -4 ------------- Run | Yrd Mat Sub Rec Fac Was Fac Fac Was Fac Fac Turns Passed 18601 | 161 844 3514 4166 1831 125 1616 393 227 4702 1022 Spaces Moved 11473 | 84 586 2024 1884 1277 207 1324 368 198 2571 950 Core 952 | 14 . . . 177 207 302 . . . 252 Treads 2042 | . . 33 161 82 . 540 . . 1106 120 Legs 1440 | . . . 457 562 . 185 . . 147 89 Wheels 5195 | 70 586 1991 1266 77 . 153 368 198 486 . Hover 1240 | . . . . 379 . 122 . . 653 86 Flight 604 | . . . . . . 22 . . 179 403 Fastest Speed 32 | 50 80 110 90 50 50 50 74 74 62 32 Average Speed 112 | 78 102 138 127 107 50 93 75 74 124 77 Slowest Speed 297 | 100 110 240 250 203 50 227 86 74 297 242 Overloaded Moves . | . . . . . . . . . . . Propulsion Burnouts . | . . . . . . . . . . . Robots Hopped 5 | . . . . . . . . . . 5 Potential Cave-ins 7 | . . 3 . . . 4 . . . . Cave-ins Triggered . | . . . . . . . . . . . Exploration Rate (%) 48 | 4 76 60 97 17 82 36 10 80 48 23 Regions Visited 10 Branch Regions 2 Pre-discovered Areas 1 | . . 1 . . . . . . . . Known Exits Taken 1 | . . . . . . 1 . . . . Unknown Exits Taken 5 | 1 1 1 1 . . . . . 1 . Scrap Searched 8 | . . 8 . . . . . . . . Spaces Dug 43 | . . 16 . . . 7 1 . 19 . Terrain Destroyed 807 | . 3 24 . 65 . 48 31 3 530 103 Melee 12 | . . . . . . . . . 12 . Projectile 91 | . . 24 . 14 . 26 1 1 25 . AOE 700 | . 3 . . 51 . 22 29 . 492 103 Terrain Rammed . | . . . . . . . . . . . Walls Destroyed . | . . . . . . . . . . . Machines Disabled . | . . . . . . . . . . . Actions | -11 -10 -10 -8 -6 -6 -6 -5 -5 -5 -4 --------- Run | Yrd Mat Sub Rec Fac Was Fac Fac Was Fac Fac Total 15952 | 137 720 2547 3569 1590 228 1588 445 232 3771 1125 Wait 2941 | . 15 254 1522 157 21 114 32 11 768 47 Move 11455 | 83 585 2023 1883 1277 206 1323 368 197 2570 940 Hop 5 | . . . . . . . . . . 5 Pick Up 167 | 16 25 26 10 11 . 26 9 . 39 5 Fast Attach 79 | 4 . 6 3 14 . 11 2 1 29 9 Attach 50 | 4 . 1 2 10 . 4 1 . 21 7 Detach 23 | 1 . 2 . 4 . . . . 12 4 Swap 141 | 2 10 68 5 8 . 5 5 5 26 7 Drop 199 | 6 16 41 15 18 1 28 6 . 59 9 Fire 763 | 21 69 126 63 90 . 73 22 18 203 78 Melee 51 | . . . . . . 4 . . 36 11 Ram 3 | . . . . . . . . . . 3 Kick 6 | . . . . . . . . . 6 . Crush 2 | . . . . . . . . . 2 . Escape Stasis . | . . . . . . . . . . . Rewire 67 | . . . 66 1 . . . . . . Trap . | . . . . . . . . . . . Miscellaneous . | . . . . . . . . . . . Route ------- -11/Scrapyard -10/Materials (discovered 4 exits: [*Mat x2] / [*Min] / *Sub) -10/Subcaves (discovered 3 exits: Mat / *Rec / [*Scr]) -8/Recycling -6/Factory -6/Waste -6/Factory (discovered 4 exits: *Fac x4) -5/Factory -5/Waste -5/Factory (discovered 3 exits: *Fac / Upp x2) -4/Factory History --------- Turn | Location | Event 18 | -11/Scrapyard | Discovered new exit (range 14) 162 | -11/Scrapyard | Entered Materials 163 | -10/Materials | Met a group of wandering Federalists 221 | -10/Materials | Discovered new exit (range 16) 308 | -10/Materials | Build established: Mutant 681 | -10/Materials | Discovered new exit (range 3) 696 | -10/Materials | Discovered new exit (range 8) 777 | -10/Materials | Discovered new exit (range 10) 1006 | -10/Materials | Entered Subcaves 1006 | -10/Subcaves | Accompanied by 1 ally 1007 | -10/Subcaves | Continued accompanying wandering Federalists (4) 1009 | -10/Subcaves | Ambushed by Subdwellers from Twisted Machinery 1234 | -10/Subcaves | Lost 4 allies 1262 | -10/Subcaves | Wandering Federalist uncovered a shortcut to Scraptown 1507 | -10/Subcaves | Visited 4L-MR0's lab 1580 | -10/Subcaves | Found Meta Core 1731 | -10/Subcaves | Ambushed by Subdweller buried in earth 1746 | -10/Subcaves | Core integrity fell below 50% 2041 | -10/Subcaves | Build established: Scavenger-Mutant 2496 | -10/Subcaves | Learned location of Storage (-8) 2540 | -10/Subcaves | A swath of the cavern ceiling suddenly collapsed 3727 | -10/Subcaves | Shifting Twisted Machinery released Spk. Treads 3727 | -10/Subcaves | Shifting Twisted Machinery released Sub. Laser 3898 | -10/Subcaves | Identified exit to Materials 4087 | -10/Subcaves | Discovered new exit (range 16) 4264 | -10/Subcaves | Build established: Mutant 4520 | -10/Subcaves | Entered Recycling 5010 | -8/Recycling | Scanned before Scraplab entrance 5034 | -8/Recycling | Angered Scraplab inhabitants 5778 | -8/Recycling | Discovered new exit (range 15) 5879 | -8/Recycling | Build established: Commander-Mutant 6333 | -8/Recycling | Found Prototype Device 6333 | -8/Recycling | Identified Scrap Engine 6956 | -8/Recycling | Build established: Commander-Construct 8686 | -8/Recycling | Entered Factory 8686 | -6/Factory | Accompanied by 8 allies 8686 | -6/Factory | Evolved 8 slots: Propulsion x2, Utility x4, Weapon x2 8780 | -6/Factory | Discovered new exit (range 20) 9253 | -6/Factory | P-60 Hacker assimilated allied Pest 3a 9257 | -6/Factory | P-60 Hacker assimilated allied Trooper 3c 9383 | -6/Factory | Fabricated Flak Cannon? 9474 | -6/Factory | Lost 4 allies 10021 | -6/Factory | Lost 3 parts (1u2w) 10403 | -6/Factory | Core integrity fell below 50% 10446 | -6/Factory | Lost 6 parts (1p3u2w) 10517 | -6/Factory | Sucked down chute 10517 | -6/Factory | Entered Waste 10538 | -6/Waste | Spotted C-40 Crusher 10548 | -6/Waste | Spotted C-40 Crusher 10548 | -6/Waste | Spotted C-40 Crusher 10587 | -6/Waste | Spotted C-40 Crusher 10599 | -6/Waste | Spotted C-40 Crusher 10608 | -6/Waste | Crushed by Compactor (1 part destroyed) 10619 | -6/Waste | Spotted C-40 Crusher 10625 | -6/Waste | Discovered new exit (range 16) 10642 | -6/Waste | Entered Factory 10727 | -6/Factory | Build established: Mutant 10810 | -6/Factory | Attached Meta Core, gained temporary slots: Propulsion, Utility, Weapon 10819 | -6/Factory | Core integrity fell below 20% 11097 | -6/Factory | Build established: Tank 11229 | -6/Factory | Fabricated Flak Cannon (x2) 11449 | -6/Factory | Identified exit to Factory 11461 | -6/Factory | Garrison activated, responded to threat 11475 | -6/Factory | Build established: Construct 12258 | -6/Factory | Entered another Factory area 12258 | -5/Factory | Evolved 2 slots: Power x1, Utility x1 12651 | -5/Factory | Sucked down chute 12651 | -5/Factory | Entered Waste 12664 | -5/Waste | Spotted C-40 Crusher 12666 | -5/Waste | EMP discharged 12708 | -5/Waste | Destroyed C-40 Crusher 12718 | -5/Waste | Spotted C-40 Crusher 12718 | -5/Waste | Spotted C-40 Crusher 12724 | -5/Waste | Spotted C-40 Crusher 12725 | -5/Waste | Spotted C-40 Crusher 12726 | -5/Waste | Spotted C-40 Crusher 12748 | -5/Waste | Destroyed C-40 Crusher 12766 | -5/Waste | EMP discharged 12766 | -5/Waste | System corruption reached 10% 12813 | -5/Waste | Destroyed C-40 Crusher 12831 | -5/Waste | Destroyed C-40 Crusher 12866 | -5/Waste | EMP discharged 12870 | -5/Waste | Discovered new exit (range 11) 12877 | -5/Waste | Identified exit to Factory 12878 | -5/Waste | Entered Factory 13540 | -5/Factory | Cargo convoy interrupted 14378 | -5/Factory | First assault squad dispatched 14896 | -5/Factory | Identified exit to Upper Caves 15376 | -5/Factory | Destroyed 11 combat bots 15420 | -5/Factory | Lost 9 parts (2n2u5w) 15498 | -5/Factory | Destroyed 7 combat bots 15860 | -5/Factory | Build established: Skirmisher 15889 | -5/Factory | Repaired Smartbomb Launcher 17070 | -5/Factory | Build established: Mutant 17187 | -5/Factory | Core integrity fell below 50% 17273 | -5/Factory | Discovered new exit (range 31) 17580 | -5/Factory | Entered another Factory area 17580 | -4/Factory | Evolved 2 slots: Propulsion x2 17830 | -4/Factory | First assault squad dispatched 17859 | -4/Factory | Fabricated Quantum Reactor? 17950 | -4/Factory | Spotted B-86 Titan 17999 | -4/Factory | Destroyed B-86 Titan 18314 | -4/Factory | Lost 3 parts (1n2w) 18427 | -4/Factory | Spotted B-86 Titan 18438 | -4/Factory | Core integrity fell below 50% 18567 | -4/Factory | Core integrity fell below 20% 18602 | -4/Factory | Lost 6 parts (3n2u1w) 18602 | -4/Factory | Destroyed by G-67 Veteran with Field Laser Last Messages --------------- 18565_ S-27 Virus destroyed. 18565_ Assembly Bed disabled. 18566_ Penetrated by Slug. 18566_ Acquired VTOL Module. 18570_ Acquired 17 matter. 18570_ Acquired 9 matter. 18571_ Penetrated by Slug. 18571_ VTOL Module destroyed. 18580_ ALERT: Unidentified disturbance in Zone 9R, assault force dispatched. 18584_ Penetrated by Slug. 18584_ Matter Pump disabled. 18588_ Slug penetrates Matter Pump. 18588_ Matter Pump disabled. 18591_ Penetrated by Slug. 18593_ O-32 Director: "IFF HANDSHAKE FAILED. SECURING TERMINAL." 18599_ ALERT: Hostiles spotted, dispatching reinforcements to Terminal F013. 18602_ R9|DWI,JAU2 ESTU%FGEGE0HW4 QGXY Map ----- +----------------------------------------------------+ | ???# # ###############+######## | | ???# # #?????????# #????# | | ???# # #?????????# """ *#????? | | ???# # #?????????# """ #????? | | ???# + #?????????# """ #????? | | ???# # #?????????# #????? | | ???# # #?????????# """ #????? | | ???# # #?????????# """ #????? | | ???# # #?????????# """ #????? | | ???# # #?????????# #????? | | ???# # #?????????# "" ###### | | ???##/#####+##### #???? ??# ! "" ## | | ????# #???# #???# #??"" ? # "" ## | | ????# #???# #???# # """ # [ Y" ## | | ????# #???# #???# + ""# "" / "" | | ????# #???# #???# g # "" ""#!]] "" ## "" | | ????# ##### ##### #??" ""#]] "" ## "" | | ????# A #???? T#]] ## | | ????############# #?????? "?########## | | ????????????????# #??????????????????# | | ????????????????# #??????????????????# "" | | ??????#?????????# #??????????????????# "" | | ?????## ####????# #??????????????????# "" | | ?????? ???# #??????????????????# "" | | ??????? "???# #??????????????????# "" | | ???????"" ""??# @#??????????????????# | | ???????""" ??# #??????????????????# | | ???????""" ?# #??????????????????# | | ???????""" ?# #################### | | ???????""" # | | ??????"""" # | | ???# + """ """ """ | | ???# !! # """ """ """ | | ???# ! # """ """ """ | | ???# ?# | | ???############?# """ " """ | | ????????????????# """ "" """ ############## | | ????????????????# """ " """ # ! # | | ??????????""????# # # | | ??????????""""??# """ """ """ # # | | ????????? """" # """ """ """ + # | | ????????? """" + """ """ """ # "" "" ?# | | ????????? """" # # "" "" ?# | | ??????????""""??# # """ """ ?# | | ????????? ????# # """ """ # | | ???????? ??????#####+#/###" "#### """ """ # | | ???????????????????? #"T"#??# # | | ???????????????????"""""" #"""#??# # | | ????????????????? """""" #####??# # | | ????????????????# """""" #??????##/##/######## | +----------------------------------------------------+ Best States ------------- Heat Dissipation 116 Energy Generation 45 Energy Capacity 638 Matter Stores 300 Matter Capacity 300 Sight Range 16 Robot Scan Range 16 Terrain Scan Range 24 Terrain Scan Density 210 Jamming Range 14 EM Shielding 3 Corruption Block 15 Armor Coverage 300 Resistance: TH 25 Resistance: EM 25 Weapon Cycling 20 Evasion (%) 63 Targeting Accuracy 8 Melee Accuracy 14 Recoil Reduction 4 Salvage Targeting 4 Offensive Hacking 14 Item Schematics ----------------- Imp. Trap Extractor | -8/Recycling | Hacked Flak Cannon | -8/Recycling | Hacked Huge Storage Unit | -8/Recycling | Hacked Robot Schematics ------------------ O-16 Technician | -10/Materials | Hacked Fabricated ------------ Flak Cannon | x2 | -6/Factory Flak Cannon | x2 | -6/Factory Quantum Reactor | x2 | -4/Factory | Preloaded Repaired ---------- Smartbomb Launcher | 20% | -5/Factory Alien Tech Used ----------------- None Achievements -------------- None Challenges ------------ None Game ------ Seed DroneAngularPit Manual? 0 Play Time 02:53:18 Cumulative 268.6 hours Start 2025.06.14 @ 13:31:40 End 2025.06.14 @ 16:53:38 Sessions 3 Manual Loads 0 Difficulty Rogue Special Mode None Game No. 248 Rogue 248 Adventurer 0 Explorer 0 Win Type - Total 1 Types 1/0/0/0/0/0/0/0/0/0 Lore% 76 Gallery% 78 Achievement% 69 Wizard Run 0 Options --------- Layout 1 ASCII 0 Keyboard 0 Movement Numpad Keybinds 0 Fullscreen 1 Font 24/Smallcaps Map View 50x35 Zoom Use 0% Tactical HUD 1 Map Filters NONE Filters NONE Steam 1 RUN: e647488d-51a6-487a-a2dc-41da90cb3c22